Workbook

Sheet MobilityCalculator
A1: Gas Parameters | B1: Value | F1: Mobility Measurement | G1: Value1 | H1: Value2 | I1: Value3 | K1: Constants/Conversions | L1: Value
A2: T(oK) | B2: 453.15 | F2: K0(cm2V-1s-1) | G2: 1.377 | H2: =(1000*$B$10*$B$4)/($H$3*$L$4*$B$7) -> 1.375763799 | I2: =(750000000000000000000*$L$5*$B$17)/($L$3*$L$4*$B$18*$B$5*$I$4) -> 1.602938536 | K2: k(erg/oK) | L2: 1.38065e-16
A3: P(torr) | B3: 690 | F3: td (ms) | G3: =($B$10*$B$4*1000)/($G$2*$L$4*$B$7) -> 37.96588552 | H3: 38 | I3: =($L$3*$B$18*$B$5*$B$10*$B$4*$I$4)/(750000000000000000*$L$5*$B$17*$B$7) -> 32.61449095 | K3: amu(gm) | L3: 1.660539e-24
A4: N(cm-3) | B4: =$L$4*(273.15/B2)*(B3/760) -> 1.470365179e+19 | F4: WD(1,1) (A2) | G4: =(750000000000000000000*$L$5*$B$17)/($L$3*$L$4*$B$18*$B$5*$G$2) -> 122.8686728 | H4: =(750000000000000000*$L$5*$B$17*$B$7*$H$3)/($L$3*$B$18*$B$5*$B$10*$B$4) -> 122.9790772 | I4: 105.55 | K4: N0 (cm-3) | L4: 2.68677e+19
A5: <vT>=(8kT/πμ)1/2 (m s-1) | B5: =(SQRT(8*$L$2*$B$2/(PI()*$B$18*$L$3)))/100 -> 602.6980806 | F5: vd (m s-1) | G5: =$G$2*$B$7*$L$4/($B$4*100) -> 6.189767386 | K5: e(C) | L5: 1.602176e-19
A6: Drift Tube Parameters | B6: Value1 | C6: Value2 | D6: Value3 | F6: K (cm2V-1s-1) | G6: =G2*$L$4/$B$4 -> 2.516165604 | K6: e(statC) | L6: 4.803e-10
A7: E(V/cm) | B7: 246 | C7: =$C$8/$B$10 -> 246.8085106 | D7: =$D$9*$B$4*0.00000000000000001 -> 246.0067982 | F7: D (cm2s-1) | G7: =G6*$B$2/11605 -> 0.0982507922 | K7: statvolt(V) | L7: 299.792458
A8: ΔV(volts) | B8: =$B$7*$B$10 -> 5781 | C8: 5800 | D8: =$D$9*$B$4*$B$10*0.00000000000000001 -> 5781.159757 | F8: W Correction | G8: Value | H8: lo field limit | K8: h(erg s) | L8: 6.626069e-27
A9: E/N(Td) | B9: =$B$7/($B$4*0.00000000000000001) -> 1.673053765 | C9: =($C$8/($B$4*$B$10))*100000000000000000 -> 1.678552472 | D9: 1.6731 | F9: vd/vT | G9: =G5/B5 -> 0.0102700964 | H9: =SQRT($B$19*$B$20)/5 -> 0.04624609008 | K9: 1Bohr= | L9: 0.5292 | M9: A
A10: L (cm) | B10: 23.5 | F10: Ko x E/N | G10: =G2*B9 -> 2.303795035 | H10: =100000000000000000*SQRT(3*$L$2*$B$2/(($B$15+$B$16)*$L$3))/(5*$L$4) -> 11.25990973 | K10: 1Hartree= | L10: 4.36e-11 | M10: erg
A11: tg (ms) | B11: 0.1 | F11: fc [see note *] | G11: =fc!E7 -> 0.5118123406 | H11: lo field limit | I11: hi field limit
A12: diam (cm) | B12: 2.5 | F12: aMT [momentum transfer coefficient] | G12: =2*(1+B19*G11+(1-G11)*B20)/3 -> 1.006982193 | H12: 1 | I12: =2*(1+$B$19)/3 -> 1.295546559 | K12: [collision frequency, s-1] | L12: =B4*G14*G16*0.00000000000001 -> 1.088846176e+10
A13: tdiff (ms) | B13: =SQRT(LN(2)*16*L2*B2*0.0000001/(L5*B17*B8))*G3 -> 0.3286037013 | F13: bMT [transverse velocity coefficient] | G13: =SQRT(2/B19/(1+B19)) -> 1.044511851 | K13: [number of collisions] | L13: =L12*G3/1000 -> 413390092.6
A14: Molecular Parameters | B14: Value | F14: vr = (vT2 + (b/a)2vd2)1/2 (m s-1) | G14: =SQRT(($G$13*$G$5)^2+$B$5^2) -> 602.7327569 | K14: l (cm) [ion's DeBroglie wavelength] | L14: =$L$8/($B$15*$L$3*$G$14) -> 1.420679659e-08
A15: m(amu) | B15: 466 | F15: zMT | G15: =1/SQRT(1+(G13*G9/G12)^2) -> 0.9999432631 | K15: t (ms) [diffusion time to wall] | L15: =(($B$12^2)/(4*$G$7))*1000 -> 15903.17966
A16: M(amu) | B16: 28 | F16: WMT(A2) [MT corrected] | G16: =G4*G15 -> 122.8617016 | H16: =(G4-G16)/G16 -> 5.674007241e-05 | K16: spread (cm) [expansion during drift] | L16: =0.173*$B$10/SQRT($B$7*$B$10) -> 0.05347028276 | M16: =L16/2.54 -> 0.02105129242 | N16: inches
A17: z (ion charge number) | B17: 1 | F17: Teff | G17: =$B$2*(1+8*$G$9^2/3/PI()/$B$19) -> 453.1930082
A18: μ(amu) | B18: =B16*B15/(B16+B15) -> 26.41295547 | F18: z2T1 | G18: =(1+8*G9^2/3/PI()/B19)^-0.5 -> 0.9999525487 | K18: F Exponent and Norm. Factor | L18: m/2kT | M18: (m/2πkT)1/2
B19: =B15/(B16+B15) -> 0.9433198381 | F19: W2T1(A2) [2T1 corrected] | G19: =G4*G18 -> 122.8628425 | K19: m | L19: =B15*L3/(2*L2*B2) -> 6.184141519e-09 | M19: =SQRT(B15*L3/(2*PI()*L2*B2)) -> 4.436748114e-05
B20: =B16/(B16+B15) -> 0.05668016194 | F20: a2T | G20: =(-12*B19^3-16*B19^2+13*B19)/(24*B19^3+32*B19^2+4*B19+15) -> -0.1787602759 | K20: M | L20: =B16*L3/(2*L2*B2) -> 3.715793187e-10 | M20: =SQRT(B16*L3/(2*PI()*L2*B2)) -> 1.087554002e-05
F21: b2T | G21: =(-3*B19^2+3*B19)/(6*B19^2-6*B19+5) -> 0.03427994942 | H21: lo field limit | I21: hi field limit | K21: μ | L21: =B18*L3/(2*L2*B2) -> 3.505181428e-10 | M21: =SQRT(B18*L3/(2*PI()*L2*B2)) -> 1.056283059e-05
F22: K' = dlnK0/dln(E/N) | G22: 0 | H22: 0 | I22: -0.5
F23: z2T2 | G23: =(1+8*(1+G21*G22)*G9^2/3*PI()/B19)^-0.5*(1+G20*G22) -> 0.99953197
F24: W2T2(A2) [2T2 corrected] | G24: =G4*G23 -> 122.8111666
F25: Resolving Power | G25: Value
F26: t1/2 (experimental) (ms) | G26: 0.4
F27: R (experimental) | G27: =G3/G26 -> 94.91471381
F28: t1/2 (predicted) (ms) | G28: =SQRT(B11^2+B13^2) -> 0.3434827398
F29: Rc (predicted="conditional") | G29: =G3/G28 -> 110.5321494
F30: R/Rc | G30: =G27/G29 -> 0.8587068494
F31: ΔVopt [to maximize resolving power] | G31: =0.0395*((B10^4*B3^2/((B11/1000)^2*G2^2*B2))^0.3333333333) -> 10136.39868

Sheet fc
A1: vd/vT | B1: fc | D1: INTERPOLATION | K1: vd/vT | L1: fc
A2: 0 | B2: 0.5 | D2: vd/vT | E2: fc | K2: 0 | L2: =cubic_Spline($A$2:$A$152,$B$2:$B$152,K2) -> 0.5
A3: 0.01 | B3: 0.5115237663 | D3: =_xlfn.FLOOR.MATH(D6*100)/100 ->  | E3: 0.5115237663 | K3: 0.001 | L3: =cubic_Spline($A$2:$A$152,$B$2:$B$152,K3) -> 0.501192354
A4: 0.02 | B4: 0.5215371027 | D4: =_xlfn.FLOOR.MATH(1+D6*100)/100 ->  | E4: 0.5215370995 | K4: 0.002 | L4: 0.5023823143
A5: 0.03 | B5: 0.5315344549 | K5: 0.003 | L5: 0.503567398
A6: 0.04 | B6: 0.5415082203 | D6: =MobilityCalculator!G9 -> 0.0102700964 | E6: =E3+(E4-E3)*(D6-D3)/(D4-D3) ->  | K6: 0.004 | L6: 0.5047452114
A7: 0.05 | B7: 0.5514508657 | D7: =MobilityCalculator!G9 -> 0.0102700964 | E7: =cubic_Spline($A$2:$A$152,$B$2:$B$152,D7) -> 0.5118123406 | K7: 0.005 | L7: 0.505913361
A8: 0.06 | B8: 0.5613549493 | K8: 0.006 | L8: 0.5070693637
A9: 0.07 | B9: 0.5712131419 | K9: 0.007 | L9: 0.5082108407
A10: 0.08 | B10: 0.5810182481 | K10: 0.008 | L10: 0.5093353539
A11: 0.09 | B11: 0.5907632253 | K11: 0.009 | L11: 0.5104404722
A12: 0.1 | B12: 0.6004412037 | K12: 0.01 | L12: 0.5115237949
A13: 0.11 | B13: 0.6100455032 | K13: 0.011 | L13: 0.5125837857
A14: 0.12 | B14: 0.6195696512 | K14: 0.012 | L14: 0.513622567
A15: 0.13 | B15: 0.6290073974 | K15: 0.013 | L15: 0.5146432825
A16: 0.14 | B16: 0.6383527285 | K16: 0.014 | L16: 0.5156488677
A17: 0.15 | B17: 0.6475998813 | K17: 0.015 | L17: 0.5166424662
A18: 0.16 | B18: 0.6567433539 | K18: 0.016 | L18: 0.5176271177
A19: 0.17 | B19: 0.6657779166 | K19: 0.017 | L19: 0.5186058319
A20: 0.18 | B20: 0.67469862 | K20: 0.018 | L20: 0.5195817154
A21: 0.19 | B21: 0.6835008029 | K21: 0.019 | L21: 0.5205577928
A22: 0.2 | B22: 0.692180098 | K22: 0.02 | L22: 0.5215370893
A23: 0.21 | B23: 0.7007324364 | K23: 0.021 | L23: 0.5225221215
A24: 0.22 | B24: 0.7091540506 | K24: 0.022 | L24: 0.5235126064
A25: 0.23 | B25: 0.7174414769 | K25: 0.023 | L25: 0.5245077159
A26: 0.24 | B26: 0.725591555 | K26: 0.024 | L26: 0.5255067115
A27: 0.25 | B27: 0.7336014276 | K27: 0.025 | L27: 0.526508646
A28: 0.26 | B28: 0.7414685387 | K28: 0.026 | L28: 0.527512781
A29: 0.27 | B29: 0.7491906297 | K29: 0.027 | L29: 0.5285182588
A30: 0.28 | B30: 0.756765736 | K30: 0.028 | L30: 0.5295242364
A31: 0.29 | B31: 0.7641921811 | K31: 0.029 | L31: 0.5305299009
A32: 0.3 | B32: 0.7714685708 | K32: 0.03 | L32: 0.5315344101
A33: 0.31 | B33: 0.7785937862 | K33: 0.031 | L33: 0.5325371647
A34: 0.32 | B34: 0.7855669761 | K34: 0.032 | L34: 0.5335381626
A35: 0.33 | B35: 0.7923875481 | K35: 0.033 | L35: 0.534537586
A36: 0.34 | B36: 0.7990551602 | K36: 0.034 | L36: 0.5355356771
A37: 0.35 | B37: 0.8055697111 | K37: 0.035 | L37: 0.536532648
A38: 0.36 | B38: 0.8119313299 | K38: 0.036 | L38: 0.5375287407
A39: 0.37 | B39: 0.8181403664 | K39: 0.037 | L39: 0.5385241228
A40: 0.38 | B40: 0.82419738 | K40: 0.038 | L40: 0.5395190139
A41: 0.39 | B41: 0.8301031292 | K41: 0.039 | L41: 0.5405136335
A42: 0.4 | B42: 0.8358585606 | K42: 0.04 | L42: 0.5415081875
A43: 0.41 | B43: 0.841464798 | K43: 0.041 | L43: 0.542502849
A44: 0.42 | B44: 0.8469231312 | K44: 0.042 | L44: 0.5434976271
A45: 0.43 | B45: 0.8522350048 | K45: 0.043 | L45: 0.5444924256
A46: 0.44 | B46: 0.857402008 | K46: 0.044 | L46: 0.5454871186
A47: 0.45 | B47: 0.862425863 | K47: 0.045 | L47: 0.5464817589
A48: 0.46 | B48: 0.867308415 | K48: 0.046 | L48: 0.547476191
A49: 0.47 | B49: 0.8720516217 | K49: 0.047 | L49: 0.5484703781
A50: 0.48 | B50: 0.8766575428 | K50: 0.048 | L50: 0.5494642765
A51: 0.49 | B51: 0.8811283306 | K51: 0.049 | L51: 0.5504577863
A52: 0.5 | B52: 0.8854662203 | K52: 0.05 | L52: 0.5514508664
A53: 0.51 | B53: 0.8896735206 | K53: 0.051 | L53: 0.552443414
A54: 0.52 | B54: 0.8937526051 | K54: 0.052 | L54: 0.55343546
A55: 0.53 | B55: 0.8977059034 | K55: 0.053 | L55: 0.5544270425
A56: 0.54 | B56: 0.9015358935 | K56: 0.054 | L56: 0.5554181101
A57: 0.55 | B57: 0.9052450934 | K57: 0.055 | L57: 0.5564087311
A58: 0.56 | B58: 0.9088360541 | K58: 0.056 | L58: 0.5573988838
A59: 0.57 | B59: 0.9123113525 | K59: 0.057 | L59: 0.5583885619
A60: 0.58 | B60: 0.9156735845 | K60: 0.058 | L60: 0.5593778034
A61: 0.59 | B61: 0.9189253591 | K61: 0.059 | L61: 0.560366587
A62: 0.6 | B62: 0.9220692925 | K62: 0.06 | L62: 0.5613549522
A63: 0.61 | B63: 0.9251080023 | K63: 0.061 | L63: 0.5623428241
A64: 0.62 | B64: 0.9280441024 | K64: 0.062 | L64: 0.5633303479
A65: 0.63 | B65: 0.9308801988 | K65: 0.063 | L65: 0.5643173931
A66: 0.64 | B66: 0.9336188843 | K66: 0.064 | L66: 0.5653039485
A67: 0.65 | B67: 0.936262735 | K67: 0.065 | L67: =cubic_Spline($A$2:$A$152,$B$2:$B$152,K67) -> 0.5662900624
A68: 0.66 | B68: 0.9388143063 | K68: 0.066 | L68: 0.5672756937
A69: 0.67 | B69: 0.9412761296 | K69: 0.067 | L69: 0.5682608164
A70: 0.68 | B70: 0.9436507089 | K70: 0.068 | L70: 0.5692454415
A71: 0.69 | B71: 0.9459405181 | K71: 0.069 | L71: 0.5702295466
A72: 0.7 | B72: 0.9481479985 | K72: 0.07 | L72: 0.5712131089
A73: 0.71 | B73: 0.9502755563 | K73: 0.071 | L73: 0.5721961986
A74: 0.72 | B74: 0.9523255606 | K74: 0.072 | L74: 0.5731786836
A75: 0.73 | B75: 0.9543003415 | K75: 0.073 | L75: 0.5741606174
A76: 0.74 | B76: 0.9562021888 | K76: 0.074 | L76: 0.5751420235
A77: 0.75 | B77: 0.9580333501 | K77: 0.075 | L77: 0.5761228062
A78: 0.76 | B78: 0.95979603 | K78: 0.076 | L78: 0.5771030785
A79: 0.77 | B79: 0.961492389 | K79: 0.077 | L79: 0.5780827597
A80: 0.78 | B80: 0.9631245424 | K80: 0.078 | L80: 0.5790618584
A81: 0.79 | B81: 0.9646945601 | K81: 0.079 | L81: 0.580040361
A82: 0.8 | B82: 0.9662044659 | K82: 0.08 | L82: 0.5810182555
A83: 0.81 | B83: 0.9676562367 | K83: 0.081 | L83: 0.5819955888
A84: 0.82 | B84: 0.9690518031 | K84: 0.082 | L84: 0.5829722844
A85: 0.83 | B85: 0.9703930484 | K85: 0.083 | L85: 0.5839483653
A86: 0.84 | B86: 0.9716818093 | K86: 0.084 | L86: 0.5849238247
A87: 0.85 | B87: 0.9729198754 | K87: 0.085 | L87: 0.5858986557
A88: 0.86 | B88: 0.97410899 | K88: 0.086 | L88: 0.5868728815
A89: 0.87 | B89: 0.9752508499 | K89: 0.087 | L89: 0.5878464356
A90: 0.88 | B90: 0.9763471057 | K90: 0.088 | L90: 0.5888193559
A91: 0.89 | B91: 0.9773993629 | K91: 0.089 | L91: 0.5897916134
A92: 0.9 | B92: 0.9784091815 | K92: 0.09 | L92: 0.5907632349
A93: 0.91 | B93: 0.9793780771 | K93: 0.091 | L93: 0.5917341256
A94: 0.92 | B94: 0.9803075215 | K94: 0.092 | L94: 0.5927043702
A95: 0.93 | B95: 0.981198943 | K95: 0.093 | L95: 0.5936739319
A96: 0.94 | B96: 0.9820537273 | K96: 0.094 | L96: 0.5946428335
A97: 0.95 | B97: 0.9828732183 | K97: 0.095 | L97: 0.5956110084
A98: 0.96 | B98: 0.9836587187 | K98: 0.096 | L98: 0.5965784945
A99: 0.97 | B99: 0.9844114909 | K99: 0.097 | L99: 0.597545255
A100: 0.98 | B100: 0.9851327574 | K100: 0.098 | L100: 0.5985113052
A101: 0.99 | B101: 0.9858237024 | K101: 0.099 | L101: 0.5994766271
A102: 1 | B102: 0.9864854717 | K102: 0.1 | L102: 0.6004411861
A103: 1.01 | B103: 0.9871191742 | K103: 0.101 | L103: 0.6014050642
A104: 1.02 | B104: 0.9877258826 | K104: 0.102 | L104: 0.6023681976
A105: 1.03 | B105: 0.9883066339 | K105: 0.103 | L105: 0.6033305502
A106: 1.04 | B106: 0.988862431 | K106: 0.104 | L106: 0.6042921456
A107: 1.05 | B107: 0.9893942426 | K107: 0.105 | L107: 0.6052529777
A108: 1.06 | B108: 0.9899030049 | K108: 0.106 | L108: 0.606213055
A109: 1.07 | B109: 0.990389622 | K109: 0.107 | L109: 0.6071723416
A110: 1.08 | B110: 0.9908549667 | K110: 0.108 | L110: 0.6081308461
A111: 1.09 | B111: 0.9912998817 | K111: 0.109 | L111: 0.6090885662
A112: 1.1 | B112: 0.9917251802 | K112: 0.11 | L112: 0.61004547
A113: 1.11 | B113: 0.9921316466 | K113: 0.111 | L113: 0.611001639
A114: 1.12 | B114: 0.9925200377 | K114: 0.112 | L114: 0.6119569413
A115: 1.13 | B115: 0.992891083 | K115: 0.113 | L115: 0.61291143
A116: 1.14 | B116: 0.9932454859 | K116: 0.114 | L116: 0.6138651285
A117: 1.15 | B117: 0.9935839244 | K117: 0.115 | L117: 0.6148179706
A118: 1.16 | B118: 0.9939070517 | K118: 0.116 | L118: 0.6157700244
A119: 1.17 | B119: 0.9942154971 | K119: 0.117 | L119: 0.616721209
A120: 1.18 | B120: 0.9945098667 | K120: 0.118 | L120: 0.6176715477
A121: 1.19 | B121: 0.9947907441 | K121: 0.119 | L121: 0.618621034
A122: 1.2 | B122: 0.9950586912 | K122: 0.12 | L122: 0.6195696491
A123: 1.21 | B123: 0.9953142487 | K123: 0.121 | L123: 0.6205174504
A124: 1.22 | B124: 0.9955579371 | K124: 0.122 | L124: 0.6214643208
A125: 1.23 | B125: 0.9957902569 | K125: 0.123 | L125: 0.6224103441
A126: 1.24 | B126: 0.9960116896 | K126: 0.124 | L126: 0.6233554846
A127: 1.25 | B127: 0.9962226985 | K127: 0.125 | L127: 0.6242997065
A128: 1.26 | B128: 0.9964237287 | K128: 0.126 | L128: 0.6252430787
A129: 1.27 | B129: 0.9966152082 | K129: 0.127 | L129: 0.6261855207
A130: 1.28 | B130: 0.9967975484 | K130: 0.128 | L130: 0.6271270639
A131: 1.29 | B131: 0.9969711445 | K131: 0.129 | L131: =cubic_Spline($A$2:$A$152,$B$2:$B$152,K131) -> 0.6280676914
A132: 1.3 | B132: 0.9971363764 | K132: 0.13 | L132: 0.6290074055
A133: 1.31 | B133: 0.9972936087 | K133: 0.131 | L133: 0.6299461796
A134: 1.32 | B134: 0.9974431916 | K134: 0.132 | L134: 0.6308840837
A135: 1.33 | B135: 0.9975854615 | K135: 0.133 | L135: 0.6318209925
A136: 1.34 | B136: 0.9977207413 | K136: 0.134 | L136: 0.6327569596
A137: 1.35 | B137: 0.9978493407 | K137: 0.135 | L137: 0.633692009
A138: 1.36 | B138: 0.9979715572 | K138: 0.136 | L138: 0.634626075
A139: 1.37 | B139: 0.9980876758 | K139: 0.137 | L139: 0.6355591963
A140: 1.38 | B140: 0.9981979703 | K140: 0.138 | L140: 0.6364913671
A141: 1.39 | B141: 0.9983027032 | K141: 0.139 | L141: 0.637422544
A142: 1.4 | B142: 0.9984021258 | K142: 0.14 | L142: 0.6383527131
A143: 1.41 | B143: 0.9984964796 | K143: 0.141 | L143: 0.639281975
A144: 1.42 | B144: 0.9985859958 | K144: 0.142 | L144: 0.6402102482
A145: 1.43 | B145: 0.9986708957 | K145: 0.143 | L145: 0.6411374678
A146: 1.44 | B146: 0.9987513919 | K146: 0.144 | L146: 0.6420636881
A147: 1.45 | B147: 0.9988276876 | K147: 0.145 | L147: 0.6429889039
A148: 1.46 | B148: 0.9988999776 | K148: 0.146 | L148: 0.6439131693
A149: 1.47 | B149: 0.9989684484 | K149: 0.147 | L149: 0.6448363749
A150: 1.48 | B150: 0.9990332786 | K150: 0.148 | L150: 0.6457585749
A151: 1.49 | B151: 0.9990946391 | K151: 0.149 | L151: 0.6466797342
A152: 1.5 | B152: 0.9991526936 | K152: 0.15 | L152: 0.6475998421
K153: 0.151 | L153: 0.6485189614
K154: 0.152 | L154: 0.6494370391
K155: 0.153 | L155: 0.6503540102
K156: 0.154 | L156: 0.6512699887
K157: 0.155 | L157: 0.6521849094
K158: 0.156 | L158: 0.6530987375
K159: 0.157 | L159: 0.6540114973
K160: 0.158 | L160: 0.6549231985
K161: 0.159 | L161: 0.6558338208
K162: 0.16 | L162: 0.6567433473
K163: 0.161 | L163: 0.6576517855
K164: 0.162 | L164: 0.6585591886
K165: 0.163 | L165: 0.6594654027
K166: 0.164 | L166: 0.6603705418
K167: 0.165 | L167: 0.6612745711
K168: 0.166 | L168: 0.6621774855
K169: 0.167 | L169: 0.6630792947
K170: 0.168 | L170: 0.663979964
K171: 0.169 | L171: 0.6648795106
K172: 0.17 | L172: 0.6657778606
K173: 0.171 | L173: 0.6666751536
K174: 0.172 | L174: 0.6675713018
K175: 0.173 | L175: 0.6684663012
K176: 0.174 | L176: 0.6693601175
K177: 0.175 | L177: 0.6702527464
K178: 0.176 | L178: 0.671144273
K179: 0.177 | L179: 0.6720346186
K180: 0.178 | L180: 0.6729237788
K181: 0.179 | L181: 0.6738117717
K182: 0.18 | L182: 0.6746985791
K183: 0.181 | L183: 0.6755842365
K184: 0.182 | L184: 0.6764686462
K185: 0.183 | L185: 0.6773518926
K186: 0.184 | L186: 0.6782339412
K187: 0.185 | L187: 0.6791147873
K188: 0.186 | L188: 0.6799944557
K189: 0.187 | L189: 0.6808728673
K190: 0.188 | L190: 0.6817500767
K191: 0.189 | L191: 0.6826260718
K192: 0.19 | L192: 0.6835008126
K193: 0.191 | L193: 0.6843743725
K194: 0.192 | L194: 0.6852466972
K195: 0.193 | L195: =cubic_Spline($A$2:$A$152,$B$2:$B$152,K195) -> 0.6861177232
K196: 0.194 | L196: 0.6869875063
K197: 0.195 | L197: 0.6878560726
K198: 0.196 | L198: 0.6887234181
K199: 0.197 | L199: 0.6895894646
K200: 0.198 | L200: 0.6904542827
... 1302 more rows
